[Event "*** Titled Tuesday Blitz"]
[Site "Chess.com"]
[Date "2020.11.03"]
[Round "8"]
[White "InitiatingASC"]
[Black "AmirBagheri78"]
[Result "0-1"]
[WhiteElo "2401"]
[BlackElo "2583"]
[TimeControl "180+1"]
[EndTime "11:32:18 PST"]
[Termination "AmirBagheri78 won by resignation"]

1. d4 {[%clk 0:03:00.9]} 1... Nf6 {[%clk 0:02:58.9]} 2. c4 {[%clk 0:03:01]} 2...
e6 {[%clk 0:02:59.1]} 3. Nc3 {[%clk 0:03:00.8]} 3... Bb4 {[%clk 0:02:58.3]} 4.
e3 {[%clk 0:03:00.5]} 4... c5 {[%clk 0:02:57.5]} 5. Bd3 {[%clk 0:03:00.4]} 5...
Nc6 {[%clk 0:02:57]} 6. Ne2 {[%clk 0:03:00.4]} 6... O-O {[%clk 0:02:56.8]} 7.
O-O {[%clk 0:03:00.2]} 7... d5 {[%clk 0:02:56.8]} 8. a3 {[%clk 0:02:59.2]} 8...
Bxc3 {[%clk 0:02:56.1]} 9. Nxc3 {[%clk 0:02:59.3]} 9... dxc4 {[%clk 0:02:54.8]}
10. Bxc4 {[%clk 0:02:58.5]} 10... cxd4 {[%clk 0:02:55]} 11. exd4 {[%clk
0:02:51.7]} 11... Qxd4 {[%clk 0:02:54.5]} 12. Qe2 {[%clk 0:02:50.9]} 12... e5
{[%clk 0:02:53.4]} 13. Rd1 {[%clk 0:02:47.1]} 13... Qg4 {[%clk 0:02:47.2]} 14.
f3 {[%clk 0:02:44.6]} 14... Qh5 {[%clk 0:02:44.6]} 15. Nd5 {[%clk 0:02:38]}
15... Nxd5 {[%clk 0:02:43.4]} 16. Bxd5 {[%clk 0:02:37.4]} 16... Nd4 {[%clk
0:02:43.3]} 17. Qf2 {[%clk 0:02:31]} 17... Rd8 {[%clk 0:02:21.4]} 18. Be4 {[%clk
0:02:22.8]} 18... Bf5 {[%clk 0:02:20.5]} 19. Bxb7 {[%clk 0:02:17.7]} 19... Nxf3+
{[%clk 0:02:16.2]} 20. Bxf3 {[%clk 0:02:10.9]} 20... Rxd1+ {[%clk 0:02:15.1]}
21. Bxd1 {[%clk 0:02:09.3]} 21... Qxd1+ {[%clk 0:02:14.1]} 22. Qf1 {[%clk
0:02:09.8]} 22... Qxf1+ {[%clk 0:01:57]} 23. Kxf1 {[%clk 0:02:09.2]} 23... a5
{[%clk 0:01:53.9]} 24. Bd2 {[%clk 0:02:07]} 24... a4 {[%clk 0:01:53.8]} 25. Rc1
{[%clk 0:02:01.6]} 25... Be6 {[%clk 0:01:52.9]} 26. Ke2 {[%clk 0:01:53.3]} 26...
f6 {[%clk 0:01:47.5]} 27. Rc7 {[%clk 0:01:51.6]} 27... Bb3 {[%clk 0:01:45.5]}
28. Rd7 {[%clk 0:01:49.2]} 28... Rc8 {[%clk 0:01:43.8]} 29. Bc3 {[%clk
0:01:49.3]} 29... h5 {[%clk 0:01:42.4]} 30. h4 {[%clk 0:01:48.1]} 30... Rc4
{[%clk 0:01:41.8]} 31. g3 {[%clk 0:01:44.5]} 31... Kh7 {[%clk 0:01:41.5]} 32.
Ke3 {[%clk 0:01:38.6]} 32... Rg4 {[%clk 0:01:37.4]} 33. Kf2 {[%clk 0:01:36.6]}
33... Kg6 {[%clk 0:01:33.9]} 34. Bd2 {[%clk 0:01:24.9]} 34... Kf5 {[%clk
0:01:33.2]} 35. Rc7 {[%clk 0:01:08.8]} 35... g6 {[%clk 0:01:22.6]} 36. Be3
{[%clk 0:01:00.8]} 36... Re4 {[%clk 0:01:18.6]} 37. Rc6 {[%clk 0:00:56.9]} 37...
Bd1 {[%clk 0:01:13.5]} 38. Rc1 {[%clk 0:00:53.8]} 38... Bg4 {[%clk 0:01:12]} 39.
Rc6 {[%clk 0:00:51.8]} 39... g5 {[%clk 0:01:09.8]} 40. hxg5 {[%clk 0:00:45.2]}
40... fxg5 {[%clk 0:01:09.6]} 41. Rc7 {[%clk 0:00:44.4]} 41... h4 {[%clk
0:01:09.1]} 42. gxh4 {[%clk 0:00:19.7]} 42... gxh4 {[%clk 0:01:08.8]} 43. Rf7+
{[%clk 0:00:19.2]} 43... Ke6 {[%clk 0:01:08]} 44. Rh7 {[%clk 0:00:18.5]} 44...
h3 {[%clk 0:01:04.5]} 45. Bc5 {[%clk 0:00:10]} 45... Rc4 {[%clk 0:01:02.1]} 46.
Bb4 {[%clk 0:00:05.6]} 46... Bf5 {[%clk 0:01:01.3]} 47. Rh6+ {[%clk 0:00:04.7]}
47... Kd5 {[%clk 0:01:01.1]} 48. Bc3 {[%clk 0:00:05.4]} 48... Rf4+ {[%clk
0:00:57.9]} 49. Kg3 {[%clk 0:00:04.7]} 49... Rg4+ {[%clk 0:00:53.4]} 50. Kf3
{[%clk 0:00:04.9]} 50... Rg2 {[%clk 0:00:51.6]} 51. Rh5 {[%clk 0:00:03.3]} 51...
Bg4+ {[%clk 0:00:51.5]} 0-1

[Event "*** Titled Tuesday Blitz"]
[Site "Chess.com"]
[Date "2020.11.03"]
[Round "8"]
[White "talyamania"]
[Black "Goryachkina"]
[Result "0-1"]
[WhiteElo "2360"]
[BlackElo "2591"]
[TimeControl "180+1"]
[EndTime "11:32:20 PST"]
[Termination "Goryachkina won on time"]

1. e4 {[%clk 0:03:00.9]} 1... c5 {[%clk 0:02:58.9]} 2. Nf3 {[%clk 0:03:00.2]}
2... d6 {[%clk 0:02:58.4]} 3. d4 {[%clk 0:02:59.4]} 3... cxd4 {[%clk 0:02:58.6]}
4. Nxd4 {[%clk 0:03:00.3]} 4... Nf6 {[%clk 0:02:58.9]} 5. Nc3 {[%clk 0:03:00.2]}
5... e5 {[%clk 0:02:58.8]} 6. Nde2 {[%clk 0:02:47.4]} 6... Be7 {[%clk
0:02:57.9]} 7. Bg5 {[%clk 0:02:47]} 7... Be6 {[%clk 0:02:54.1]} 8. Bxf6 {[%clk
0:02:44.1]} 8... Bxf6 {[%clk 0:02:53.9]} 9. h3 {[%clk 0:02:39.6]} 9... O-O
{[%clk 0:02:52]} 10. g4 {[%clk 0:02:39.3]} 10... Nc6 {[%clk 0:02:44.3]} 11. Bg2
{[%clk 0:02:39]} 11... Rc8 {[%clk 0:02:33.2]} 12. O-O {[%clk 0:02:38.3]} 12...
Nd4 {[%clk 0:02:29.1]} 13. Nxd4 {[%clk 0:02:25.8]} 13... exd4 {[%clk 0:02:29]}
14. Nd5 {[%clk 0:02:25]} 14... Bxd5 {[%clk 0:02:28.6]} 15. exd5 {[%clk
0:02:24.7]} 15... Qb6 {[%clk 0:02:22.4]} 16. Rb1 {[%clk 0:02:16.4]} 16... Rc5
{[%clk 0:02:17.7]} 17. Re1 {[%clk 0:02:02.4]} 17... Rfc8 {[%clk 0:02:14.2]} 18.
Qd3 {[%clk 0:01:48]} 18... g6 {[%clk 0:02:07.9]} 19. Qf3 {[%clk 0:01:39.6]}
19... Qd8 {[%clk 0:02:03.7]} 20. c3 {[%clk 0:01:27.6]} 20... dxc3 {[%clk
0:02:01.9]} 21. bxc3 {[%clk 0:01:27.5]} 21... Rxc3 {[%clk 0:02:00.6]} 22. Re3
{[%clk 0:01:21.1]} 22... Rc1+ {[%clk 0:01:56.5]} 23. Re1 {[%clk 0:01:20.4]}
23... Rxb1 {[%clk 0:01:53.3]} 24. Rxb1 {[%clk 0:01:19.1]} 24... b6 {[%clk
0:01:53.7]} 25. Qa3 {[%clk 0:01:07.7]} 25... Qe7 {[%clk 0:01:51.3]} 26. Rc1
{[%clk 0:01:02.3]} 26... Re8 {[%clk 0:01:44.3]} 27. Qf3 {[%clk 0:00:55.3]} 27...
Bd4 {[%clk 0:01:42.5]} 28. Bf1 {[%clk 0:00:50.7]} 28... Bc5 {[%clk 0:01:36.1]}
29. Bb5 {[%clk 0:00:45.2]} 29... Rf8 {[%clk 0:01:29.5]} 30. Bd3 {[%clk
0:00:29.9]} 30... f5 {[%clk 0:01:28.7]} 31. Rf1 {[%clk 0:00:17.1]} 31... fxg4
{[%clk 0:01:15.2]} 32. Qxg4 {[%clk 0:00:16.1]} 32... Rxf2 {[%clk 0:01:11.9]} 33.
Kh1 {[%clk 0:00:09.3]} 33... Rxf1+ {[%clk 0:01:02.7]} 34. Bxf1 {[%clk
0:00:08.6]} 34... Kg7 {[%clk 0:01:03]} 35. Qe6 {[%clk 0:00:07.3]} 35... Qxe6
{[%clk 0:00:57.4]} 36. dxe6 {[%clk 0:00:06.8]} 36... d5 {[%clk 0:00:57.8]} 37.
h4 {[%clk 0:00:05.6]} 37... Kf6 {[%clk 0:00:57.1]} 38. Bh3 {[%clk 0:00:05]}
38... Bf2 {[%clk 0:00:54.7]} 39. h5 {[%clk 0:00:04.9]} 39... gxh5 {[%clk
0:00:54.9]} 40. Kg2 {[%clk 0:00:04.8]} 40... Bc5 {[%clk 0:00:53.1]} 41. Kf3
{[%clk 0:00:04.8]} 41... b5 {[%clk 0:00:50]} 42. Ke2 {[%clk 0:00:03.2]} 42... b4
{[%clk 0:00:50.2]} 43. Kd3 {[%clk 0:00:02.9]} 43... a5 {[%clk 0:00:50.4]} 44.
Kc2 {[%clk 0:00:01.4]} 44... a4 {[%clk 0:00:49.8]} 45. Kd3 {[%clk 0:00:01.1]}
45... h4 {[%clk 0:00:48.5]} 0-1

[Event "*** Titled Tuesday Blitz"]
[Site "Chess.com"]
[Date "2020.11.03"]
[Round "8"]
[White "arminmusovic"]
[Black "jonaszmb"]
[Result "0-1"]
[WhiteElo "2549"]
[BlackElo "2420"]
[TimeControl "180+1"]
[EndTime "11:32:21 PST"]
[Termination "jonaszmb won by resignation"]

1. a3 {[%clk 0:03:00.9]} 1... g6 {[%clk 0:02:59.2]} 2. Nc3 {[%clk 0:03:01.3]}
2... Bg7 {[%clk 0:02:59.1]} 3. e4 {[%clk 0:03:02.2]} 3... c5 {[%clk 0:02:58.9]}
4. Nf3 {[%clk 0:03:02.3]} 4... Nc6 {[%clk 0:02:59.1]} 5. Bc4 {[%clk 0:03:02.8]}
5... e6 {[%clk 0:02:57.7]} 6. Ba2 {[%clk 0:03:03.5]} 6... Nge7 {[%clk
0:02:56.7]} 7. O-O {[%clk 0:03:04.1]} 7... d5 {[%clk 0:02:55.9]} 8. Re1 {[%clk
0:03:03.1]} 8... d4 {[%clk 0:02:54.1]} 9. Ne2 {[%clk 0:03:01.9]} 9... O-O {[%clk
0:02:46.8]} 10. Ng3 {[%clk 0:03:00.4]} 10... e5 {[%clk 0:02:43.9]} 11. d3 {[%clk
0:03:00]} 11... Qd6 {[%clk 0:02:40.2]} 12. b4 {[%clk 0:02:54.4]} 12... cxb4
{[%clk 0:02:36.5]} 13. axb4 {[%clk 0:02:53.4]} 13... b5 {[%clk 0:02:17.6]} 14.
Bb3 {[%clk 0:02:36.5]} 14... Be6 {[%clk 0:02:12.5]} 15. Bxe6 {[%clk 0:02:21.8]}
15... Qxe6 {[%clk 0:02:13.4]} 16. Ra6 {[%clk 0:02:19.9]} 16... Qc8 {[%clk
0:02:09.2]} 17. Ra2 {[%clk 0:02:11.7]} 17... Nxb4 {[%clk 0:02:08.5]} 18. Rb2
{[%clk 0:02:12.2]} 18... a5 {[%clk 0:02:08.8]} 19. Bd2 {[%clk 0:02:11]} 19...
Nec6 {[%clk 0:02:08.7]} 20. Qa1 {[%clk 0:02:07.1]} 20... Qd7 {[%clk 0:01:56.6]}
21. Reb1 {[%clk 0:02:02.5]} 21... h6 {[%clk 0:01:49.2]} 22. Qa3 {[%clk
0:02:00.1]} 22... Rfb8 {[%clk 0:01:46.1]} 23. Qb3 {[%clk 0:01:57.2]} 23... Bf8
{[%clk 0:01:38.8]} 24. Bxb4 {[%clk 0:01:37.3]} 24... Bxb4 {[%clk 0:01:36]} 25.
h4 {[%clk 0:01:32.7]} 25... Bc3 {[%clk 0:01:35]} 26. Ra2 {[%clk 0:01:14.7]}
26... a4 {[%clk 0:01:22.6]} 27. Qa3 {[%clk 0:00:48.4]} 27... b4 {[%clk
0:01:20.6]} 28. Qc1 {[%clk 0:00:46.1]} 28... Kg7 {[%clk 0:01:17.2]} 29. h5
{[%clk 0:00:44.5]} 29... b3 {[%clk 0:00:55.6]} 30. cxb3 {[%clk 0:00:45.4]} 30...
axb3 {[%clk 0:00:55.7]} 31. Rxa8 {[%clk 0:00:45.7]} 31... b2 {[%clk 0:00:56.1]}
32. Qd1 {[%clk 0:00:29.5]} 32... Rxa8 {[%clk 0:00:56]} 33. Nh4 {[%clk
0:00:29.7]} 33... Ne7 {[%clk 0:00:52]} 34. hxg6 {[%clk 0:00:20.9]} 34... fxg6
{[%clk 0:00:52.9]} 35. Nhf5+ {[%clk 0:00:14.4]} 35... gxf5 {[%clk 0:00:49.5]}
36. Nh5+ {[%clk 0:00:13.9]} 36... Kf7 {[%clk 0:00:48.7]} 37. Qb3+ {[%clk
0:00:11.4]} 37... Qe6 {[%clk 0:00:45.1]} 38. Qc2 {[%clk 0:00:05.9]} 38... Ra1
{[%clk 0:00:44.2]} 39. g4 {[%clk 0:00:05.5]} 39... f4 {[%clk 0:00:43.2]} 40. f3
{[%clk 0:00:05.2]} 40... Qa2 {[%clk 0:00:43]} 41. Kg2 {[%clk 0:00:04.6]} 41...
Rxb1 {[%clk 0:00:43.1]} 42. g5 {[%clk 0:00:03.8]} 42... Rg1+ {[%clk 0:00:42.5]}
43. Kh3 {[%clk 0:00:04.1]} 43... Rxg5 {[%clk 0:00:39.4]} 44. Nxf4 {[%clk
0:00:03.1]} 44... b1=Q {[%clk 0:00:38.9]} 45. Qxa2+ {[%clk 0:00:02.6]} 45...
Qxa2 {[%clk 0:00:39]} 46. Kh4 {[%clk 0:00:02.9]} 46... Qf2+ {[%clk 0:00:38.2]}
0-1

[Event "*** Titled Tuesday Blitz"]
[Site "Chess.com"]
[Date "2020.11.03"]
[Round "8"]
[White "jaskol95"]
[Black "fyall777"]
[Result "0-1"]
[WhiteElo "2319"]
[BlackElo "2448"]
[TimeControl "180+1"]
[EndTime "11:32:22 PST"]
[Termination "fyall777 won by resignation"]

1. d4 {[%clk 0:03:00.9]} 1... d5 {[%clk 0:03:00.1]} 2. Bf4 {[%clk 0:02:59.1]}
2... e6 {[%clk 0:03:00.2]} 3. e3 {[%clk 0:02:59.2]} 3... Bd6 {[%clk 0:02:59.5]}
4. Bg3 {[%clk 0:02:58.8]} 4... Nf6 {[%clk 0:02:59.6]} 5. c3 {[%clk 0:02:59.1]}
5... Nbd7 {[%clk 0:02:52.9]} 6. Nf3 {[%clk 0:02:58]} 6... Ne4 {[%clk 0:02:51.6]}
7. Nbd2 {[%clk 0:02:56.7]} 7... Nxg3 {[%clk 0:02:13.8]} 8. hxg3 {[%clk
0:02:55.6]} 8... f5 {[%clk 0:02:13.2]} 9. Bd3 {[%clk 0:02:53.2]} 9... Nf6 {[%clk
0:02:02]} 10. Qc2 {[%clk 0:02:50.2]} 10... c5 {[%clk 0:02:00.3]} 11. Ne5 {[%clk
0:02:46.9]} 11... Bxe5 {[%clk 0:01:51.9]} 12. dxe5 {[%clk 0:02:47.8]} 12... Ng4
{[%clk 0:01:51.9]} 13. Nf3 {[%clk 0:02:32]} 13... O-O {[%clk 0:01:32]} 14. O-O-O
{[%clk 0:02:24.5]} 14... Qc7 {[%clk 0:01:30.3]} 15. Qa4 {[%clk 0:01:35.7]} 15...
c4 {[%clk 0:01:26.2]} 16. Bc2 {[%clk 0:01:29.6]} 16... Bd7 {[%clk 0:01:25.6]}
17. Qa3 {[%clk 0:01:29.1]} 17... Nxf2 {[%clk 0:01:21.9]} 18. Qe7 {[%clk
0:01:26.9]} 18... Rf7 {[%clk 0:01:20.2]} 19. Qh4 {[%clk 0:01:25.9]} 19... Nxh1
{[%clk 0:01:19.8]} 20. Ng5 {[%clk 0:01:22.7]} 20... h6 {[%clk 0:01:16.3]} 21.
Nxf7 {[%clk 0:01:18.1]} 21... Kxf7 {[%clk 0:01:16.3]} 22. Rxh1 {[%clk
0:01:16.2]} 22... Qxe5 {[%clk 0:01:16]} 23. Qh5+ {[%clk 0:01:16.2]} 23... Kg8
{[%clk 0:01:12.7]} 24. g4 {[%clk 0:01:16.6]} 24... Qxe3+ {[%clk 0:01:12.3]} 25.
Kb1 {[%clk 0:01:16.3]} 25... Be8 {[%clk 0:01:08.3]} 26. Qh4 {[%clk 0:01:15.7]}
26... Bg6 {[%clk 0:01:08.4]} 27. Qe7 {[%clk 0:01:11.7]} 27... d4 {[%clk
0:00:58.1]} 28. gxf5 {[%clk 0:01:06.4]} 28... Bxf5 {[%clk 0:00:57.4]} 29. Bxf5
{[%clk 0:01:03.2]} 29... exf5 {[%clk 0:00:57.3]} 30. Qxb7 {[%clk 0:00:57.6]}
30... Re8 {[%clk 0:00:54]} 31. Qd5+ {[%clk 0:00:56.7]} 31... Kh8 {[%clk
0:00:53.6]} 32. Qxd4 {[%clk 0:00:52.1]} 32... Qxd4 {[%clk 0:00:48.9]} 33. cxd4
{[%clk 0:00:53]} 33... Re2 {[%clk 0:00:48.1]} 34. d5 {[%clk 0:00:51.8]} 34...
Rd2 {[%clk 0:00:45.6]} 35. Rc1 {[%clk 0:00:51.8]} 35... Rd4 {[%clk 0:00:40.4]}
36. d6 {[%clk 0:00:49.8]} 36... h5 {[%clk 0:00:39.3]} 37. d7 {[%clk 0:00:49.9]}
37... Kh7 {[%clk 0:00:35.8]} 38. Rxc4 {[%clk 0:00:49.6]} 38... Rxd7 {[%clk
0:00:35.9]} 39. b4 {[%clk 0:00:46.4]} 39... g5 {[%clk 0:00:34.6]} 40. a4 {[%clk
0:00:41.7]} 40... h4 {[%clk 0:00:34.9]} 41. b5 {[%clk 0:00:39.9]} 41... Kg6
{[%clk 0:00:35.1]} 42. a5 {[%clk 0:00:39.9]} 42... g4 {[%clk 0:00:34.9]} 43. Kc2
{[%clk 0:00:37.8]} 43... Kg5 {[%clk 0:00:34.1]} 44. Ra4 {[%clk 0:00:20.1]} 44...
h3 {[%clk 0:00:29.3]} 45. gxh3 {[%clk 0:00:19.8]} 45... gxh3 {[%clk 0:00:29.5]}
46. b6 {[%clk 0:00:20.4]} 46... axb6 {[%clk 0:00:29.5]} 47. axb6 {[%clk
0:00:20.2]} 47... h2 {[%clk 0:00:27]} 48. Ra1 {[%clk 0:00:20.1]} 48... Kg4
{[%clk 0:00:27]} 49. Rh1 {[%clk 0:00:19.2]} 49... Kg3 {[%clk 0:00:26.6]} 0-1

[Event "*** Titled Tuesday Blitz"]
[Site "Chess.com"]
[Date "2020.11.03"]
[Round "8"]
[White "pastouche06"]
[Black "snowlord"]
[Result "1-0"]
[WhiteElo "2516"]
[BlackElo "2702"]
[TimeControl "180+1"]
[EndTime "11:32:26 PST"]
[Termination "pastouche06 won by resignation"]

1. d4 {[%clk 0:03:00.9]} 1... Nf6 {[%clk 0:02:59.5]} 2. c4 {[%clk 0:03:01]} 2...
g6 {[%clk 0:02:58.5]} 3. f3 {[%clk 0:03:01.2]} 3... Bg7 {[%clk 0:02:57]} 4. e4
{[%clk 0:03:01.1]} 4... O-O {[%clk 0:02:57.9]} 5. Ne2 {[%clk 0:03:01.6]} 5... d6
{[%clk 0:02:58.4]} 6. Be3 {[%clk 0:03:01.3]} 6... Nbd7 {[%clk 0:02:59.1]} 7. Qd2
{[%clk 0:03:01.6]} 7... a6 {[%clk 0:02:59.8]} 8. Nec3 {[%clk 0:03:01.1]} 8... b5
{[%clk 0:02:52.1]} 9. cxb5 {[%clk 0:02:57.1]} 9... axb5 {[%clk 0:02:53]} 10.
Bxb5 {[%clk 0:02:56.6]} 10... Nb6 {[%clk 0:02:06]} 11. O-O {[%clk 0:02:42.9]}
11... c6 {[%clk 0:02:03.1]} 12. Be2 {[%clk 0:02:41.2]} 12... Nfd7 {[%clk
0:01:56.4]} 13. Na3 {[%clk 0:02:28.8]} 13... e5 {[%clk 0:01:53.5]} 14. Nc4
{[%clk 0:02:19.6]} 14... Nxc4 {[%clk 0:01:50.6]} 15. Bxc4 {[%clk 0:02:20.5]}
15... exd4 {[%clk 0:01:05.3]} 16. Bxd4 {[%clk 0:02:21.4]} 16... Ne5 {[%clk
0:01:05.6]} 17. Be2 {[%clk 0:02:19.4]} 17... Be6 {[%clk 0:01:06.2]} 18. Rfd1
{[%clk 0:02:11]} 18... Rb8 {[%clk 0:00:57.8]} 19. b3 {[%clk 0:01:56.6]} 19...
Qa5 {[%clk 0:00:52.5]} 20. Rac1 {[%clk 0:01:55.5]} 20... Rfd8 {[%clk 0:00:48.2]}
21. Na4 {[%clk 0:01:44.3]} 21... Qc7 {[%clk 0:00:19.7]} 22. f4 {[%clk
0:01:36.8]} 22... Bh6 {[%clk 0:00:19.4]} 23. g3 {[%clk 0:01:15.6]} 23... Bh3
{[%clk 0:00:14.8]} 24. Ba1 {[%clk 0:01:07.5]} 24... Qa7+ {[%clk 0:00:06.6]} 25.
Bd4 {[%clk 0:01:04.7]} 25... c5 {[%clk 0:00:05.9]} 26. Ba1 {[%clk 0:01:00.7]}
26... Ng4 {[%clk 0:00:03.9]} 27. Bc4 {[%clk 0:00:46.6]} 27... d5 {[%clk
0:00:02.8]} 28. exd5 {[%clk 0:00:46.8]} 28... Re8 {[%clk 0:00:03]} 29. Qc3
{[%clk 0:00:40.9]} 29... f6 {[%clk 0:00:03.2]} 30. d6+ {[%clk 0:00:39.9]} 30...
Kg7 {[%clk 0:00:03.7]} 31. Re1 {[%clk 0:00:39.5]} 31... Qb7 {[%clk 0:00:03.3]}
32. Bf1 {[%clk 0:00:29.3]} 32... Bxf1 {[%clk 0:00:02.3]} 33. Rxf1 {[%clk
0:00:22.6]} 33... Re2 {[%clk 0:00:01.6]} 34. Qf3 {[%clk 0:00:23.3]} 34... Qxf3
{[%clk 0:00:01.6]} 35. Rxf3 {[%clk 0:00:24.2]} 35... Nxh2 {[%clk 0:00:02.4]} 36.
Rd3 {[%clk 0:00:21.1]} 36... Rbe8 {[%clk 0:00:02.3]} 37. d7 {[%clk 0:00:19.8]}
37... Rd8 {[%clk 0:00:02.8]} 38. Nxc5 {[%clk 0:00:19.8]} 38... Ng4 {[%clk
0:00:03]} 39. Nb7 {[%clk 0:00:19.6]} 39... Rxd7 {[%clk 0:00:03.5]} 40. Rxd7+
{[%clk 0:00:19.3]} 40... Kf8 {[%clk 0:00:04.4]} 41. Rc8+ {[%clk 0:00:19.4]} 1-0

[Event "*** Titled Tuesday Blitz"]
[Site "Chess.com"]
[Date "2020.11.03"]
[Round "8"]
[White "Titus369"]
[Black "winniethepooh04"]
[Result "1-0"]
[WhiteElo "2534"]
[BlackElo "2229"]
[TimeControl "180+1"]
[EndTime "11:32:26 PST"]
[Termination "Titus369 won by resignation"]

1. e4 {[%clk 0:03:00.9]} 1... e6 {[%clk 0:02:58.5]} 2. d4 {[%clk 0:03:00.4]}
2... d5 {[%clk 0:02:59.1]} 3. Nd2 {[%clk 0:02:59]} 3... c5 {[%clk 0:02:59]} 4.
Ngf3 {[%clk 0:02:55.8]} 4... cxd4 {[%clk 0:02:58.6]} 5. exd5 {[%clk 0:02:55.8]}
5... Qxd5 {[%clk 0:02:59.5]} 6. Bc4 {[%clk 0:02:54.7]} 6... Qd6 {[%clk 0:03:00]}
7. O-O {[%clk 0:02:50.8]} 7... Nf6 {[%clk 0:03:00.5]} 8. Nb3 {[%clk 0:02:51.2]}
8... Nc6 {[%clk 0:03:01]} 9. Nbxd4 {[%clk 0:02:49.2]} 9... Nxd4 {[%clk
0:03:01.9]} 10. Nxd4 {[%clk 0:02:50]} 10... a6 {[%clk 0:03:02.1]} 11. a4 {[%clk
0:02:44.3]} 11... Qc7 {[%clk 0:03:02.3]} 12. Qe2 {[%clk 0:02:43.5]} 12... Be7
{[%clk 0:03:02]} 13. Bg5 {[%clk 0:02:26.6]} 13... O-O {[%clk 0:02:59]} 14. Rad1
{[%clk 0:02:25]} 14... Re8 {[%clk 0:02:57.4]} 15. Bh4 {[%clk 0:02:19.5]} 15...
Bd7 {[%clk 0:02:56.8]} 16. Bg3 {[%clk 0:02:16.2]} 16... Qc5 {[%clk 0:02:47.2]}
17. Bd3 {[%clk 0:02:09.3]} 17... Bxa4 {[%clk 0:02:43.6]} 18. Rfe1 {[%clk
0:01:56.3]} 18... Rad8 {[%clk 0:02:41.4]} 19. Nf3 {[%clk 0:01:53.7]} 19... Bc6
{[%clk 0:02:31.6]} 20. Ne5 {[%clk 0:01:39.9]} 20... Bb5 {[%clk 0:02:18]} 21.
Nxf7 {[%clk 0:01:27.1]} 21... Kxf7 {[%clk 0:02:01.3]} 22. Qxe6+ {[%clk
0:01:25.5]} 22... Kf8 {[%clk 0:02:01.4]} 23. Bxb5 {[%clk 0:01:24.1]} 23... Rxd1
{[%clk 0:01:47.7]} 24. Rxd1 {[%clk 0:01:21.3]} 24... axb5 {[%clk 0:01:41.8]} 25.
c3 {[%clk 0:01:11.5]} 25... Qc6 {[%clk 0:01:32.1]} 26. Qf5 {[%clk 0:01:07.5]}
26... Rd8 {[%clk 0:01:28.6]} 27. Re1 {[%clk 0:01:04.4]} 27... Qd7 {[%clk
0:01:24.2]} 28. Qf3 {[%clk 0:01:01.5]} 28... Qd2 {[%clk 0:01:20.3]} 29. Rf1
{[%clk 0:00:54]} 29... b4 {[%clk 0:01:16.9]} 30. cxb4 {[%clk 0:00:50.7]} 30...
Qxb4 {[%clk 0:01:17]} 31. b3 {[%clk 0:00:50.7]} 31... Qe4 {[%clk 0:01:16.6]} 32.
Qc3 {[%clk 0:00:50]} 32... Qc6 {[%clk 0:01:15.4]} 33. Qe3 {[%clk 0:00:49.3]}
33... Qc5 {[%clk 0:01:14.1]} 34. Qf3 {[%clk 0:00:49.2]} 34... b5 {[%clk
0:01:08.9]} 35. h3 {[%clk 0:00:48.1]} 35... b4 {[%clk 0:01:08.7]} 36. Re1 {[%clk
0:00:47.9]} 36... Qc3 {[%clk 0:01:03.9]} 37. Re3 {[%clk 0:00:42.5]} 37... Qc1+
{[%clk 0:00:59.1]} 38. Kh2 {[%clk 0:00:42.2]} 38... Rd1 {[%clk 0:00:57]} 39. Bf4
{[%clk 0:00:41]} 39... Bd6 {[%clk 0:00:48.4]} 40. Qa8+ {[%clk 0:00:18.3]} 40...
Kf7 {[%clk 0:00:46.9]} 41. Qb7+ {[%clk 0:00:17.2]} 41... Kg6 {[%clk 0:00:22.2]}
42. Rg3+ {[%clk 0:00:16.7]} 42... Kf5 {[%clk 0:00:20.7]} 43. Bxc1 {[%clk
0:00:15]} 43... Bxg3+ {[%clk 0:00:21.3]} 44. fxg3 {[%clk 0:00:15.1]} 44... Rxc1
{[%clk 0:00:22.2]} 45. Qf3+ {[%clk 0:00:13.1]} 45... Ke6 {[%clk 0:00:21.2]} 46.
Qe3+ {[%clk 0:00:13.1]} 46... Kf7 {[%clk 0:00:21.2]} 47. Qxc1 {[%clk 0:00:14]}
1-0